[Event "Couzeix rapide 9 rondes cadences multiples"]
[Site "Couzeix Chess Club, France"]
[Date "2019.03.10"]
[Round "6.3"]
[White "Jackson, Thomas"]
[Black "Jackson, Edgar"]
[Result "1-0"]
[TimeControl "5'+10''pm,  7'+10''pm, 10'+10''pm,"]
[WhiteElo "2106"]
[BlackElo "1701"]

1. d4 {[%clk 00:06:42]} {[%emt 00:00:37]} Nf6 {[%clk 00:07:18]} {[%emt
00:00:02]} 2. c4 {[%clk 00:06:46]} {[%emt 00:00:05]} g6 {[%clk 00:07:22]}
{[%emt 00:00:06]} 3. Nc3 {[%clk 00:06:53]} {[%emt 00:00:03]} Bg7 {[%clk
00:07:31]} {[%emt 00:00:02]} 4. e4 {[%clk 00:07:02]} {[%emt 00:00:01]} d6
{[%clk 00:07:40]} {[%emt 00:00:02]} 5. Be2 {[%clk 00:07:11]} {[%emt 00:00:01]}
O-O {[%clk 00:07:48]} {[%emt 00:00:02]} 6. Nf3 {[%clk 00:07:20]} {[%emt
00:00:01]} c5 {[%clk 00:07:45]} {[%emt 00:00:12]} 7. O-O {[%clk 00:07:27]}
{[%emt 00:00:03]} Nbd7 {[%clk 00:07:54]} {[%emt 00:00:02]} 8. Re1 {[%clk
00:07:29]} {[%emt 00:00:06]} b6 {[%clk 00:07:54]} {[%emt 00:00:10]} 9. Be3
{[%clk 00:07:25]} {[%emt 00:00:15]} cxd4 {[%clk 00:08:01]} {[%emt 00:00:03]} 10.
Nxd4 {[%clk 00:07:31]} {[%emt 00:00:03]} Bb7 {[%clk 00:08:08]} {[%emt
00:00:03]} 11. f3 {[%clk 00:07:38]} {[%emt 00:00:04]} Rc8 {[%clk 00:07:53]}
{[%emt 00:00:24]} 12. Rc1 {[%clk 00:07:44]} {[%emt 00:00:05]} h6 {[%clk
00:07:07]} {[%emt 00:00:56]} 13. Qd2 {[%clk 00:07:53]} {[%emt 00:00:01]} Kh7
{[%clk 00:07:16]} 14. b4 {[%clk 00:07:42]} {[%emt 00:00:20]} Ng8 {[%clk
00:07:13]} {[%emt 00:00:12]} 15. a3 {[%clk 00:07:34]} {[%emt 00:00:19]} Ne5
{[%clk 00:06:17]} {[%emt 00:01:06]} 16. Nd5 {[%clk 00:07:37]} {[%emt 00:00:06]}
e6 {[%clk 00:05:50]} {[%emt 00:00:38]} 17. Nc3 {[%clk 00:07:36]} {[%emt
00:00:11]} Nxc4 {[%clk 00:05:49]} {[%emt 00:00:11]} 18. Bxc4 {[%clk 00:07:44]}
{[%emt 00:00:02]} Rxc4 {[%clk 00:05:58]} 19. Ndb5 {[%clk 00:07:53]} d5 {[%clk
00:05:36]} {[%emt 00:00:32]} 20. exd5 {[%clk 00:07:59]} {[%emt 00:00:05]} a6
{[%clk 00:05:33]} {[%emt 00:00:13]} 21. Nd4 {[%clk 00:07:53]} {[%emt 00:00:15]}
Bxd5 {[%clk 00:05:21]} {[%emt 00:00:22]} 22. Nxd5 {[%clk 00:07:30]} {[%emt
00:00:34]} Rxc1 {[%clk 00:05:28]} {[%emt 00:00:02]} 23. Rxc1 {[%clk 00:07:34]}
{[%emt 00:00:06]} Qxd5 {[%clk 00:05:36]} {[%emt 00:00:03]} 24. Qf2 {[%clk
00:07:23]} {[%emt 00:00:21]} Ne7 {[%clk 00:05:29]} {[%emt 00:00:17]} 25. Ne2
{[%clk 00:07:16]} {[%emt 00:00:16]} b5 {[%clk 00:05:33]} {[%emt 00:00:07]} 26.
Bc5 {[%clk 00:07:24]} {[%emt 00:00:02]} Bf6 {[%clk 00:05:22]} {[%emt 00:00:21]}
27. Nc3 {[%clk 00:07:20]} {[%emt 00:00:13]} Qg5 {[%clk 00:04:34]} {[%emt
00:00:58]} 28. Rc2 {[%clk 00:07:18]} {[%emt 00:00:12]} Rd8 {[%clk 00:04:35]}
{[%emt 00:00:08]} 29. g3 {[%clk 00:07:09]} {[%emt 00:00:21]} Rd7 {[%clk
00:04:02]} {[%emt 00:00:42]} 30. Ne4 {[%clk 00:07:07]} {[%emt 00:00:12]} Qe5
{[%clk 00:04:05]} {[%emt 00:00:05]} 31. Kg2 {[%clk 00:06:50]} {[%emt 00:00:27]}
Qa1 {[%clk 00:03:56]} {[%emt 00:00:20]} 32. Ra2 {[%clk 00:06:28]} {[%emt
00:00:30]} Qe5 {[%clk 00:03:51]} {[%emt 00:00:17]} 33. Rc2 {[%clk 00:06:37]}
Bg7 {[%clk 00:03:50]} {[%emt 00:00:12]} 34. Rd2 {[%clk 00:06:25]} {[%emt
00:00:22]} Rxd2 {[%clk 00:03:58]} {[%emt 00:00:02]} 35. Qxd2 {[%emt 00:00:03]}
Nd5 {[%clk 00:04:05]} 36. Bd6 {[%clk 00:06:31]} {[%emt 00:00:14]} Qb2 {[%clk
00:04:02]} {[%emt 00:00:13]} 37. Qxb2 {[%clk 00:06:27]} {[%emt 00:00:14]} Bxb2
{[%clk 00:04:09]} {[%emt 00:00:03]} 38. Nc5 {[%clk 00:06:36]} {[%emt 00:00:01]}
Bxa3 {[%clk 00:04:04]} {[%emt 00:00:15]} 39. Nxa6 {[%clk 00:06:45]} {[%emt
00:00:01]} e5 {[%clk 00:04:06]} {[%emt 00:00:07]} 40. Kf2 {[%clk 00:06:44]}
{[%emt 00:00:11]} f5 {[%clk 00:04:14]} {[%emt 00:00:02]} 41. Ke2 {[%clk
00:06:48]} {[%emt 00:00:05]} g5 {[%clk 00:04:18]} {[%emt 00:00:08]} 42. Kd3
{[%clk 00:06:56]} {[%emt 00:00:02]} Bb2 {[%clk 00:04:10]} {[%emt 00:00:17]} 43.
Nb8 {[%clk 00:06:57]} {[%emt 00:00:09]} Nf6 {[%clk 00:04:11]} {[%emt 00:00:09]}
44. Nc6 {[%clk 00:06:58]} {[%emt 00:00:08]} e4+ {[%clk 00:04:19]} {[%emt
00:00:03]} 45. fxe4 {[%clk 00:07:05]} {[%emt 00:00:03]} fxe4+ {[%clk 00:04:27]}
{[%emt 00:00:02]} 46. Ke2 {[%clk 00:07:15]} Bd4 {[%clk 00:04:33]} {[%emt
00:00:05]} 47. Nxd4 {[%clk 00:07:19]} {[%emt 00:00:06]} Nd5 {[%clk 00:04:32]}
{[%emt 00:00:11]} 48. Nxb5 {[%clk 00:07:26]} {[%emt 00:00:03]} 1-0

[Event "Couzeix rapide 9 rondes cadences multiples"]
[Site "Couzeix Chess Club, France"]
[Date "2019.03.10"]
[Round "6.4"]
[White "Seddik, Houssem"]
[Black "Brun, Pierre"]
[Result "1-0"]
[TimeControl "5'+10''pm,  7'+10''pm, 10'+10''pm,"]
[WhiteElo "1492"]
[BlackElo "1684"]

1. e4 {[%clk 00:07:19]} {[%emt 00:00:01]} e6 {[%clk 00:07:20]} 2. d3 {[%clk
00:07:28]} {[%emt 00:00:01]} d5 {[%clk 00:07:28]} {[%emt 00:00:01]} 3. Nd2
{[%clk 00:07:37]} Nf6 {[%clk 00:07:37]} {[%emt 00:00:01]} 4. Ngf3 {[%clk
00:07:46]} {[%emt 00:00:01]} c5 {[%clk 00:07:45]} {[%emt 00:00:02]} 5. g3
{[%clk 00:07:55]} {[%emt 00:00:01]} Nc6 {[%clk 00:07:53]} {[%emt 00:00:01]} 6.
Bg2 {[%clk 00:08:05]} {[%emt 00:00:01]} Bd7 {[%clk 00:08:01]} {[%emt 00:00:01]}
7. O-O {[%clk 00:08:08]} {[%emt 00:00:07]} Be7 {[%clk 00:07:59]} {[%emt
00:00:12]} 8. Re1 {[%clk 00:08:17]} {[%emt 00:00:01]} O-O {[%clk 00:08:05]}
{[%emt 00:00:03]} 9. e5 {[%clk 00:08:25]} {[%emt 00:00:03]} Ne8 {[%clk
00:08:07]} {[%emt 00:00:07]} 10. Nf1 {[%clk 00:08:34]} {[%emt 00:00:01]} f6
{[%clk 00:07:56]} {[%emt 00:00:21]} 11. h4 {[%clk 00:08:01]} {[%emt 00:00:43]}
fxe5 {[%clk 00:07:57]} {[%emt 00:00:09]} 12. Nxe5 {[%clk 00:08:10]} {[%emt
00:00:01]} Nxe5 {[%clk 00:07:58]} {[%emt 00:00:08]} 13. Rxe5 {[%clk 00:08:18]}
{[%emt 00:00:02]} Bd6 {[%clk 00:07:58]} {[%emt 00:00:10]} 14. Re1 {[%clk
00:08:00]} {[%emt 00:00:29]} Qf6 {[%clk 00:07:30]} {[%emt 00:00:36]} 15. Qe2
{[%clk 00:07:34]} {[%emt 00:00:38]} h6 {[%clk 00:07:21]} {[%emt 00:00:19]} 16.
Ne3 {[%clk 00:06:32]} {[%emt 00:01:12]} Nc7 {[%clk 00:05:52]} {[%emt 00:01:38]}
17. Ng4 {[%clk 00:06:09]} {[%emt 00:00:34]} Qg6 {[%clk 00:04:53]} {[%emt
00:01:08]} 18. Ne5 {[%clk 00:06:06]} {[%emt 00:00:14]} Qe8 {[%clk 00:04:46]}
{[%emt 00:00:16]} 19. c4 {[%clk 00:04:38]} {[%emt 00:01:39]} Bc6 {[%clk
00:04:15]} {[%emt 00:00:39]} 20. Nxc6 {[%emt 00:00:32]} bxc6 {[%clk 00:04:13]}
{[%emt 00:00:11]} 21. Qg4 {[%clk 00:04:26]} {[%emt 00:00:02]} h5 {[%clk
00:03:53]} {[%emt 00:00:29]} 22. Qe2 {[%clk 00:03:57]} {[%emt 00:00:38]} Qf7
{[%clk 00:03:55]} {[%emt 00:00:08]} 23. Bg5 {[%clk 00:03:29]} {[%emt 00:00:39]}
Rae8 {[%clk 00:03:55]} {[%emt 00:00:09]} 24. b3 {[%clk 00:03:34]} {[%emt
00:00:06]} e5 {[%clk 00:03:26]} {[%emt 00:00:39]} 25. Qd2 {[%clk 00:02:52]}
{[%emt 00:00:51]} Ne6 {[%clk 00:03:27]} {[%emt 00:00:09]} 26. cxd5 {[%clk
00:02:52]} {[%emt 00:00:10]} Nxg5 {[%clk 00:03:32]} {[%emt 00:00:05]} 27. Qxg5
{[%clk 00:02:39]} {[%emt 00:00:24]} cxd5 {[%clk 00:03:36]} {[%emt 00:00:05]} 28.
Re2 {[%clk 00:02:35]} {[%emt 00:00:14]} d4 {[%clk 00:02:48]} {[%emt 00:00:58]}
29. Rae1 {[%clk 00:02:38]} {[%emt 00:00:07]} Qf5 {[%clk 00:02:50]} {[%emt
00:00:07]} 30. Bd5+ {[%clk 00:02:32]} {[%emt 00:00:17]} Kh8 {[%clk 00:02:35]}
{[%emt 00:00:24]} 31. Qd2 {[%clk 00:02:06]} {[%emt 00:00:36]} Qf6 {[%clk
00:01:50]} {[%emt 00:00:55]} 32. Be4 {[%clk 00:02:03]} {[%emt 00:00:14]} Re7
{[%clk 00:01:27]} {[%emt 00:00:33]} 33. Kg2 {[%clk 00:01:52]} {[%emt 00:00:21]}
Kg8 {[%clk 00:01:17]} {[%emt 00:00:20]} 34. Bd5+ {[%clk 00:01:52]} {[%emt
00:00:09]} Kh7 {[%clk 00:01:25]} {[%emt 00:00:02]} 35. Be4+ {[%clk 00:01:54]}
{[%emt 00:00:09]} g6 {[%clk 00:01:34]} {[%emt 00:00:01]} 36. f3 {[%clk
00:01:19]} {[%emt 00:00:46]} Kg7 {[%clk 00:01:31]} {[%emt 00:00:12]} 37. Rf2
{[%clk 00:01:28]} {[%emt 00:00:02]} Qe6 {[%clk 00:01:21]} {[%emt 00:00:20]} 38.
Qg5 {[%clk 00:01:15]} {[%emt 00:00:23]} Qf6 {[%clk 00:01:26]} {[%emt 00:00:05]}
39. Qd2 {[%clk 00:01:23]} {[%emt 00:00:02]} Qe6 {[%clk 00:01:35]} {[%emt
00:00:01]} 40. Qe2 {[%clk 00:00:36]} {[%emt 00:00:56]} Qf6 {[%clk 00:01:33]}
{[%emt 00:00:12]} 41. Bd5 {[%clk 00:00:43]} {[%emt 00:00:02]} Qf5 {[%clk
00:01:36]} {[%emt 00:00:07]} 42. Be4 {[%clk 00:00:43]} {[%emt 00:00:11]} Qf6
{[%clk 00:01:44]} {[%emt 00:00:02]} 43. Bd5 {[%clk 00:00:32]} {[%emt 00:00:22]}
Qf5 {[%clk 00:01:52]} {[%emt 00:00:02]} 44. f4 {[%clk 00:00:25]} {[%emt
00:00:17]} exf4 {[%clk 00:01:39]} {[%emt 00:00:23]} 45. Be4 {[%emt 00:00:27]}
Qf6 {[%clk 00:01:31]} {[%emt 00:00:16]} 46. gxf4 {[%clk 00:00:17]} {[%emt
00:00:03]} Bxf4 {[%clk 00:01:17]} {[%emt 00:00:24]} 47. Ref1 {[%clk 00:00:27]}
Qxh4 {[%clk 00:01:25]} {[%emt 00:00:02]} 48. Rh1 {[%clk 00:00:21]} {[%emt
00:00:16]} Qg3+ {[%clk 00:01:33]} {[%emt 00:00:02]} 49. Kf1 {[%clk 00:00:31]}
Rf6 {[%clk 00:00:56]} {[%emt 00:00:47]} 50. Rg1 {[%clk 00:00:40]} Qe3 {[%clk
00:00:57]} {[%emt 00:00:08]} 51. Qxh5 {[%clk 00:00:46]} {[%emt 00:00:04]} Qxf2+
{[%clk 00:00:32]} {[%emt 00:00:36]} 52. Kxf2 {[%clk 00:00:52]} {[%emt
00:00:03]} Bg5+ {[%clk 00:00:41]} 53. Qf3 {[%clk 00:01:00]} {[%emt 00:00:03]}
Rxf3+ {[%clk 00:00:48]} {[%emt 00:00:03]} 54. Kxf3 {[%clk 00:01:09]} Rf7+
{[%clk 00:00:57]} {[%emt 00:00:02]} 55. Ke2 {[%clk 00:01:15]} {[%emt 00:00:04]}
Be3 {[%clk 00:01:03]} {[%emt 00:00:03]} 56. Rxg6+ {[%clk 00:01:24]} {[%emt
00:00:01]} Kf8 {[%clk 00:01:12]} 57. Ra6 {[%emt 00:00:25]} Rc7 {[%clk
00:01:00]} {[%emt 00:00:21]} 58. Kf3 {[%clk 00:01:15]} {[%emt 00:00:05]} Bd2
{[%clk 00:00:58]} {[%emt 00:00:12]} 59. Kg4 {[%clk 00:01:13]} {[%emt 00:00:12]}
Bb4 {[%clk 00:00:51]} {[%emt 00:00:16]} 60. Kf5 {[%clk 00:01:22]} {[%emt
00:00:01]} Re7 {[%clk 00:00:59]} {[%emt 00:00:02]} 61. Rh6 {[%clk 00:01:25]}
{[%emt 00:00:07]} Ke8 {[%clk 00:01:04]} {[%emt 00:00:05]} 62. Kf6 {[%clk
00:01:26]} {[%emt 00:00:09]} Rf7+ {[%clk 00:00:37]} {[%emt 00:00:37]} 63. Ke6
{[%clk 00:01:28]} {[%emt 00:00:08]} Rf8 {[%clk 00:00:43]} {[%emt 00:00:03]} 64.
Rh7 {[%clk 00:01:28]} {[%emt 00:00:10]} Kd8 {[%clk 00:00:42]} {[%emt 00:00:12]}
65. Rxa7 {[%clk 00:01:33]} {[%emt 00:00:05]} Re8+ {[%clk 00:00:48]} {[%emt
00:00:04]} 66. Kd6 {[%clk 00:01:41]} {[%emt 00:00:02]} c4+ {[%clk 00:00:55]}
{[%emt 00:00:03]} 67. Kc6 {[%clk 00:01:30]} {[%emt 00:00:47]} c3 {[%clk
00:02:58]} {[%emt 00:00:06]} 68. Rd7+ {[%clk 00:01:03]} {[%emt 00:00:37]} Kc8
{[%clk 00:03:05]} {[%emt 00:00:04]} 69. Rxd4 {[%clk 00:01:02]} {[%emt
00:00:11]} c2 {[%clk 00:02:43]} {[%emt 00:00:32]} 70. Rc4 {[%clk 00:01:11]} Re7
{[%clk 00:02:23]} {[%emt 00:00:31]} 71. Kb6+ {[%clk 00:00:29]} {[%emt
00:00:52]} Kb8 {[%clk 00:02:20]} {[%emt 00:00:13]} 72. Rxc2 {[%clk 00:00:37]}
{[%emt 00:00:02]} Re6+ {[%clk 00:02:15]} {[%emt 00:00:14]} 73. Rc6 {[%clk
00:00:41]} {[%emt 00:00:05]} Re7 {[%clk 00:01:58]} {[%emt 00:00:29]} 74. Kb5
{[%clk 00:00:25]} {[%emt 00:00:27]} Rb7+ {[%clk 00:01:53]} {[%emt 00:00:14]} 75.
Rb6 {[%clk 00:00:26]} {[%emt 00:00:09]} Rxb6+ {[%clk 00:01:56]} {[%emt
00:00:07]} 76. Kxb6 {[%clk 00:00:35]} {[%emt 00:00:01]} Kc8 {[%clk 00:02:03]}
{[%emt 00:00:03]} 77. a4 {[%clk 00:00:42]} {[%emt 00:00:03]} Bc3 {[%clk
00:02:05]} {[%emt 00:00:08]} 78. Kb5 {[%clk 00:00:46]} {[%emt 00:00:06]} Kc7
{[%clk 00:02:12]} {[%emt 00:00:03]} 79. b4 {[%clk 00:00:55]} {[%emt 00:00:01]}
Bd4 {[%clk 00:02:18]} {[%emt 00:00:03]} 80. a5 {[%clk 00:01:04]} Ba7 {[%clk
00:02:18]} {[%emt 00:00:10]} 81. Kc4 {[%clk 00:01:11]} {[%emt 00:00:03]} Be3
{[%clk 00:02:19]} {[%emt 00:00:08]} 82. b5 {[%clk 00:01:20]} {[%emt 00:00:01]}
Kb8 {[%clk 00:02:25]} {[%emt 00:00:04]} 83. d4 {[%clk 00:01:27]} {[%emt
00:00:03]} Bf4 {[%clk 00:02:31]} {[%emt 00:00:04]} 84. Kc5 {[%clk 00:01:36]}
{[%emt 00:00:01]} Bc7 {[%clk 00:02:37]} {[%emt 00:00:04]} 85. b6 {[%clk
00:01:45]} {[%emt 00:00:01]} Bd8 {[%clk 00:02:45]} {[%emt 00:00:03]} 86. a6
{[%clk 00:01:54]} Be7+ {[%clk 00:02:50]} {[%emt 00:00:05]} 87. Kc6 {[%clk
00:02:03]} {[%emt 00:00:01]} Bd8 {[%clk 00:02:56]} {[%emt 00:00:04]} 88. a7+
{[%clk 00:10:10]} {[%emt 00:00:29]} 1-0

[Event "Couzeix rapide 9 rondes cadences multiples"]
[Site "Couzeix Chess Club, France"]
[Date "2019.03.10"]
[Round "7.1"]
[White "Seddik, Houssem"]
[Black "Girel, Joseph"]
[Result "0-1"]
[TimeControl "5'+10''pm,  7'+10''pm, 10'+10''pm,"]
[WhiteElo "1492"]
[BlackElo "2220"]

1. e4 {[%clk 00:10:19]} c5 {[%clk 00:10:19]} {[%emt 00:00:02]} 2. Nc3 {[%clk
00:10:28]} {[%emt 00:00:01]} a6 {[%clk 00:10:27]} {[%emt 00:00:01]} 3. f4
{[%emt 00:00:02]} b5 {[%clk 00:10:36]} 4. Nf3 {[%clk 00:10:41]} {[%emt
00:00:06]} Bb7 {[%clk 00:10:44]} {[%emt 00:00:01]} 5. d3 {[%clk 00:10:45]}
{[%emt 00:00:05]} e6 {[%clk 00:10:52]} {[%emt 00:00:02]} 6. g3 {[%clk
00:10:54]} b4 {[%clk 00:11:01]} {[%emt 00:00:02]} 7. Ne2 {[%clk 00:11:02]}
{[%emt 00:00:01]} d5 {[%clk 00:11:10]} {[%emt 00:00:01]} 8. exd5 {[%clk
00:10:44]} {[%emt 00:00:28]} exd5 {[%clk 00:11:19]} {[%emt 00:00:01]} 9. Bg2
{[%clk 00:10:53]} Nf6 {[%clk 00:11:27]} {[%emt 00:00:01]} 10. O-O {[%clk
00:11:00]} {[%emt 00:00:04]} Be7 {[%clk 00:11:36]} {[%emt 00:00:02]} 11. d4
{[%clk 00:10:48]} {[%emt 00:00:22]} c4 {[%clk 00:11:43]} {[%emt 00:00:03]} 12.
c3 {[%clk 00:10:42]} {[%emt 00:00:16]} O-O {[%clk 00:11:50]} {[%emt 00:00:03]}
13. Ne5 {[%clk 00:10:27]} {[%emt 00:00:25]} Nc6 {[%clk 00:11:47]} {[%emt
00:00:13]} 14. Be3 {[%clk 00:08:37]} {[%emt 00:02:00]} a5 {[%clk 00:11:05]}
{[%emt 00:00:53]} 15. Qc2 {[%clk 00:08:32]} {[%emt 00:00:15]} Bd6 {[%clk
00:10:42]} {[%emt 00:00:33]} 16. Kh1 {[%clk 00:08:03]} {[%emt 00:00:39]} a4
{[%clk 00:10:20]} {[%emt 00:00:31]} 17. Ng1 {[%clk 00:07:54]} {[%emt 00:00:18]}
a3 {[%clk 00:10:27]} {[%emt 00:00:05]} 18. bxa3 {[%clk 00:08:02]} {[%emt
00:00:03]} Rxa3 {[%clk 00:10:35]} {[%emt 00:00:01]} 19. Bd2 {[%clk 00:06:39]}
{[%emt 00:01:33]} Qa5 {[%clk 00:10:14]} {[%emt 00:00:31]} 20. cxb4 {[%clk
00:05:10]} {[%emt 00:01:40]} Nxb4 {[%clk 00:09:25]} {[%emt 00:00:59]} 21. Bxb4
{[%clk 00:04:51]} {[%emt 00:00:29]} Bxb4 {[%clk 00:09:31]} {[%emt 00:00:04]} 22.
Rfb1 {[%clk 00:04:14]} {[%emt 00:00:47]} Bc3 {[%clk 00:09:27]} {[%emt
00:00:14]} 23. Rxb7 {[%clk 00:03:58]} {[%emt 00:00:26]} Bxa1 {[%clk 00:09:35]}
{[%emt 00:00:02]} 24. Ne2 {[%clk 00:04:02]} Rxa2 {[%clk 00:09:41]} {[%emt
00:00:09]} 25. Qd1 {[%clk 00:03:55]} {[%emt 00:00:16]} c3 {[%clk 00:09:41]}
{[%emt 00:00:10]} 26. Nc1 {[%clk 00:03:38]} {[%emt 00:00:26]} c2 {[%clk
00:09:44]} {[%emt 00:00:08]} 27. Qe2 {[%clk 00:03:11]} {[%emt 00:00:37]} Bxd4
{[%clk 00:09:35]} {[%emt 00:00:20]} 28. Ned3 {[%clk 00:03:08]} {[%emt
00:00:12]} Qa6 {[%clk 00:09:26]} {[%emt 00:00:19]} 29. Re7 {[%clk 00:02:49]}
{[%emt 00:00:29]} Ra1 {[%clk 00:09:17]} {[%emt 00:00:19]} 30. h3 {[%clk
00:02:31]} {[%emt 00:00:28]} Qa3 {[%clk 00:09:08]} {[%emt 00:00:19]} 31. Qxc2
{[%clk 00:02:22]} {[%emt 00:00:19]} Qxe7 {[%clk 00:09:15]} {[%emt 00:00:04]}
0-1

[Event "Couzeix rapide 9 rondes cadences multiples"]
[Site "Couzeix Chess Club, France"]
[Date "2019.03.10"]
[Round "7.2"]
[White "Dubreuil, Remy"]
[Black "Jackson, Thomas"]
[Result "0-1"]
[TimeControl "5'+10''pm,  7'+10''pm, 10'+10''pm,"]
[WhiteElo "1714"]
[BlackElo "2106"]

1. b3 {[%clk 00:10:18]} {[%emt 00:00:01]} Nf6 {[%clk 00:10:14]} {[%emt
00:00:06]} 2. Bb2 {[%clk 00:10:26]} {[%emt 00:00:02]} e6 {[%clk 00:10:22]}
{[%emt 00:00:02]} 3. e3 {[%clk 00:10:33]} {[%emt 00:00:03]} b6 {[%clk
00:10:28]} {[%emt 00:00:04]} 4. Nf3 {[%clk 00:10:40]} {[%emt 00:00:02]} Bb7
{[%clk 00:10:37]} {[%emt 00:00:02]} 5. Be2 {[%clk 00:10:44]} {[%emt 00:00:05]}
d5 {[%clk 00:10:44]} {[%emt 00:00:03]} 6. d3 {[%clk 00:10:50]} {[%emt
00:00:04]} Bd6 {[%clk 00:10:47]} {[%emt 00:00:07]} 7. O-O {[%clk 00:10:31]}
{[%emt 00:00:29]} Nbd7 {[%clk 00:10:53]} {[%emt 00:00:04]} 8. Nbd2 {[%clk
00:10:12]} {[%emt 00:00:29]} O-O {[%clk 00:10:55]} {[%emt 00:00:07]} 9. c4
{[%clk 00:10:09]} {[%emt 00:00:13]} c5 {[%clk 00:10:54]} {[%emt 00:00:11]} 10.
d4 {[%clk 00:09:45]} {[%emt 00:00:34]} Rc8 {[%clk 00:10:45]} {[%emt 00:00:19]}
11. Rc1 {[%clk 00:09:53]} {[%emt 00:00:02]} Qe7 {[%clk 00:10:48]} {[%emt
00:00:07]} 12. Ne5 {[%clk 00:09:53]} {[%emt 00:00:09]} Ne4 {[%clk 00:08:44]}
{[%emt 00:02:14]} 13. f4 {[%clk 00:09:36]} {[%emt 00:00:27]} cxd4 {[%clk
00:07:22]} {[%emt 00:01:32]} 14. exd4 {[%clk 00:09:21]} {[%emt 00:00:24]} Ndf6
{[%clk 00:07:04]} {[%emt 00:00:29]} 15. Bf3 {[%clk 00:08:48]} {[%emt 00:00:43]}
Nxd2 {[%clk 00:06:44]} {[%emt 00:00:31]} 16. Qxd2 {[%clk 00:08:54]} {[%emt
00:00:04]} Rfd8 {[%clk 00:06:43]} {[%emt 00:00:11]} 17. Qf2 {[%clk 00:07:19]}
{[%emt 00:01:45]} Ba3 {[%clk 00:04:41]} {[%emt 00:02:13]} 18. Rc2 {[%clk
00:06:15]} {[%emt 00:01:12]} Bxb2 {[%clk 00:04:44]} {[%emt 00:00:09]} 19. Rxb2
{[%clk 00:06:23]} {[%emt 00:00:02]} dxc4 {[%clk 00:04:47]} {[%emt 00:00:08]} 20.
bxc4 {[%clk 00:06:04]} {[%emt 00:00:28]} Bxf3 {[%clk 00:04:40]} {[%emt
00:00:17]} 21. gxf3 {[%clk 00:06:02]} {[%emt 00:00:11]} Nh5 {[%clk 00:03:51]}
{[%emt 00:01:00]} 22. Qe3 {[%clk 00:05:28]} {[%emt 00:00:45]} Qf6 {[%clk
00:03:53]} {[%emt 00:00:07]} 23. Ng4 {[%clk 00:05:11]} {[%emt 00:00:26]} Qxd4
{[%clk 00:03:58]} {[%emt 00:00:07]} 24. Qxd4 {[%clk 00:05:18]} {[%emt
00:00:02]} Rxd4 {[%clk 00:04:05]} {[%emt 00:00:04]} 25. c5 {[%clk 00:05:08]}
{[%emt 00:00:20]} Rxc5 {[%clk 00:03:50]} {[%emt 00:00:25]} 26. Re1 {[%clk
00:05:07]} {[%emt 00:00:11]} Nxf4 {[%clk 00:03:37]} {[%emt 00:00:24]} 27. Rbb1
{[%clk 00:04:57]} {[%emt 00:00:20]} h5 {[%clk 00:03:36]} {[%emt 00:00:11]} 28.
Ne5 {[%clk 00:05:03]} {[%emt 00:00:04]} f6 {[%clk 00:03:21]} {[%emt 00:00:26]}
29. Kf1 {[%clk 00:10:10]} {[%emt 00:00:24]} 0-1